[Event "*** Titled Tuesday Blitz"]
[Site "Chess.com"]
[Date "2021.03.02"]
[Round "10"]
[White "lagedema"]
[Black "Manukyan_Artak"]
[Result "0-1"]
[WhiteElo "2503"]
[BlackElo "2360"]
[TimeControl "180+1"]
[EndTime "11:57:32 PST"]
[Termination "Manukyan_Artak won by resignation"]

1. d4 {[%clk 0:03:00.9]} 1... Nf6 {[%clk 0:02:59.6]} 2. c4 {[%clk 0:03:01]} 2...
g6 {[%clk 0:02:57.6]} 3. Nc3 {[%clk 0:03:01]} 3... Bg7 {[%clk 0:02:58.5]} 4. e4
{[%clk 0:03:00.8]} 4... O-O {[%clk 0:02:59.4]} 5. f3 {[%clk 0:03:00.5]} 5... d6
{[%clk 0:02:59.8]} 6. Be3 {[%clk 0:03:00.6]} 6... e5 {[%clk 0:02:59.9]} 7. Nge2
{[%clk 0:02:58.2]} 7... Nc6 {[%clk 0:02:57.7]} 8. Qd2 {[%clk 0:02:57.9]} 8... a6
{[%clk 0:02:54.1]} 9. d5 {[%clk 0:02:53.2]} 9... Ne7 {[%clk 0:02:43.2]} 10. Ng3
{[%clk 0:02:50.9]} 10... c5 {[%clk 0:02:39.1]} 11. Be2 {[%clk 0:02:49.3]} 11...
b5 {[%clk 0:02:34.8]} 12. cxb5 {[%clk 0:02:41.1]} 12... h5 {[%clk 0:02:34.3]}
13. O-O {[%clk 0:02:39.7]} 13... h4 {[%clk 0:02:33.7]} 14. Nh1 {[%clk
0:02:40.1]} 14... Nh5 {[%clk 0:02:28.4]} 15. bxa6 {[%clk 0:02:35.6]} 15... Bxa6
{[%clk 0:02:27.5]} 16. Bxa6 {[%clk 0:02:35.7]} 16... Rxa6 {[%clk 0:02:28.4]} 17.
Nf2 {[%clk 0:02:35.2]} 17... Qb8 {[%clk 0:02:22.2]} 18. Bg5 {[%clk 0:02:29.2]}
18... Bf6 {[%clk 0:02:16.7]} 19. b3 {[%clk 0:02:22.9]} 19... Kg7 {[%clk
0:02:14.9]} 20. Ng4 {[%clk 0:02:18.8]} 20... Rh8 {[%clk 0:02:02.3]} 21. Nxf6
{[%clk 0:02:09.1]} 21... Nxf6 {[%clk 0:02:01.8]} 22. f4 {[%clk 0:02:10]} 22...
Neg8 {[%clk 0:01:35.6]} 23. f5 {[%clk 0:01:59.6]} 23... Qb4 {[%clk 0:01:10.9]}
24. fxg6 {[%clk 0:01:58.3]} 24... fxg6 {[%clk 0:01:04]} 25. Kh1 {[%clk
0:00:38.4]} 25... h3 {[%clk 0:00:58.4]} 26. Qf2 {[%clk 0:00:10.6]} 26... hxg2+
{[%clk 0:00:57]} 27. Kxg2 {[%clk 0:00:09.1]} 27... Rxh2+ {[%clk 0:00:53.5]} 28.
Kxh2 {[%clk 0:00:09.1]} 28... Ng4+ {[%clk 0:00:53.8]} 29. Kg3 {[%clk 0:00:09.4]}
29... Nxf2 {[%clk 0:00:54.1]} 0-1

[Event "*** Titled Tuesday Blitz"]
[Site "Chess.com"]
[Date "2021.03.02"]
[Round "10"]
[White "redblizzard"]
[Black "LuisFSiles"]
[Result "1-0"]
[WhiteElo "2441"]
[BlackElo "2309"]
[TimeControl "180+1"]
[EndTime "11:57:38 PST"]
[Termination "redblizzard won by resignation"]

1. e4 {[%clk 0:03:00.9]} 1... c5 {[%clk 0:02:57.8]} 2. Nf3 {[%clk 0:03:01]} 2...
d6 {[%clk 0:02:57.8]} 3. Bc4 {[%clk 0:02:59.8]} 3... Nc6 {[%clk 0:02:53.3]} 4.
c3 {[%clk 0:02:59]} 4... Nf6 {[%clk 0:02:52.6]} 5. d3 {[%clk 0:02:59.4]} 5... g6
{[%clk 0:02:50.8]} 6. O-O {[%clk 0:02:58.9]} 6... Bg7 {[%clk 0:02:51.2]} 7. Nbd2
{[%clk 0:02:59.3]} 7... O-O {[%clk 0:02:50.9]} 8. Re1 {[%clk 0:02:59.7]} 8... e5
{[%clk 0:02:46.9]} 9. Bb3 {[%clk 0:02:54.1]} 9... a6 {[%clk 0:02:44.2]} 10. h3
{[%clk 0:02:54]} 10... d5 {[%clk 0:02:39.4]} 11. Nf1 {[%clk 0:02:51.7]} 11... h6
{[%clk 0:02:36.3]} 12. Ng3 {[%clk 0:02:51.1]} 12... d4 {[%clk 0:02:26.7]} 13.
cxd4 {[%clk 0:02:44.1]} 13... cxd4 {[%clk 0:02:19.4]} 14. a3 {[%clk 0:02:43.9]}
14... Qe7 {[%clk 0:02:18.3]} 15. Nh2 {[%clk 0:02:43.2]} 15... Be6 {[%clk
0:02:17.6]} 16. Bd2 {[%clk 0:02:41.5]} 16... Rac8 {[%clk 0:02:11.5]} 17. f4
{[%clk 0:02:40.4]} 17... Bxb3 {[%clk 0:02:00.9]} 18. Qxb3 {[%clk 0:02:39.4]}
18... exf4 {[%clk 0:02:00.3]} 19. Bxf4 {[%clk 0:02:38.7]} 19... b5 {[%clk
0:01:56.3]} 20. Nf3 {[%clk 0:02:36]} 20... Nd7 {[%clk 0:01:54.2]} 21. Qd5 {[%clk
0:02:27]} 21... Qe6 {[%clk 0:01:47.2]} 22. Qxe6 {[%clk 0:02:20.9]} 22... fxe6
{[%clk 0:01:46.5]} 23. Bd6 {[%clk 0:02:21.4]} 23... Rfd8 {[%clk 0:01:33.7]} 24.
e5 {[%clk 0:02:21.4]} 24... Nb6 {[%clk 0:01:24.7]} 25. Re4 {[%clk 0:02:11.3]}
25... Nd5 {[%clk 0:01:21.5]} 26. Rc1 {[%clk 0:02:02.7]} 26... h5 {[%clk
0:01:19.8]} 27. Nxd4 {[%clk 0:01:44.7]} 27... Nxd4 {[%clk 0:01:18.4]} 28. Rxc8
{[%clk 0:01:45.6]} 28... Nf3+ {[%clk 0:01:14.5]} 29. gxf3 {[%clk 0:01:43.3]}
29... Rxc8 {[%clk 0:01:14.2]} 30. Ne2 {[%clk 0:01:38.2]} 30... Rc2 {[%clk
0:01:11.8]} 31. Nd4 {[%clk 0:01:34.2]} 31... Rxb2 {[%clk 0:01:08.3]} 32. Nxe6
{[%clk 0:01:34.7]} 32... Bh6 {[%clk 0:01:08.4]} 33. f4 {[%clk 0:01:30.9]} 33...
Nc3 {[%clk 0:01:04.6]} 34. Rb4 {[%clk 0:01:24.4]} 34... Rd2 {[%clk 0:01:01.7]}
35. Nc5 {[%clk 0:01:10.3]} 35... Nd5 {[%clk 0:00:56.4]} 36. Rb1 {[%clk
0:01:04.5]} 36... Nxf4 {[%clk 0:00:56.2]} 37. Ne4 {[%clk 0:00:58.8]} 37... Nxh3+
{[%clk 0:00:56]} 38. Kf1 {[%clk 0:00:57.2]} 38... Nf4 {[%clk 0:00:52]} 39. Rc1
{[%clk 0:00:55.4]} 39... Nxd3 {[%clk 0:00:50.6]} 40. Rc7 {[%clk 0:00:51.5]}
40... Ra2 {[%clk 0:00:44]} 41. Nf6+ {[%clk 0:00:50.8]} 1-0

[Event "*** Titled Tuesday Blitz"]
[Site "Chess.com"]
[Date "2021.03.02"]
[Round "10"]
[White "MateusViageiro"]
[Black "zim0ne"]
[Result "0-1"]
[WhiteElo "2353"]
[BlackElo "2505"]
[TimeControl "180+1"]
[EndTime "11:57:39 PST"]
[Termination "zim0ne won on time"]

1. e4 {[%clk 0:03:00.9]} 1... e5 {[%clk 0:02:59.4]} 2. Nf3 {[%clk 0:02:59.2]}
2... Nc6 {[%clk 0:02:59.6]} 3. Bb5 {[%clk 0:02:58.1]} 3... a6 {[%clk 0:02:59.8]}
4. Ba4 {[%clk 0:02:57.8]} 4... d6 {[%clk 0:03:00.1]} 5. c3 {[%clk 0:02:57.4]}
5... Bd7 {[%clk 0:03:00]} 6. h3 {[%clk 0:02:56.6]} 6... g6 {[%clk 0:02:59.9]} 7.
d4 {[%clk 0:02:55.6]} 7... Bg7 {[%clk 0:02:59.9]} 8. O-O {[%clk 0:02:55.6]} 8...
Nf6 {[%clk 0:02:59.6]} 9. Re1 {[%clk 0:02:54.9]} 9... Qe7 {[%clk 0:02:59.6]} 10.
Bg5 {[%clk 0:02:49.7]} 10... h6 {[%clk 0:02:55.7]} 11. Bh4 {[%clk 0:02:49.8]}
11... O-O {[%clk 0:02:54.8]} 12. Nbd2 {[%clk 0:02:43.6]} 12... b5 {[%clk
0:02:54.9]} 13. Bc2 {[%clk 0:02:42.9]} 13... Rad8 {[%clk 0:02:53.9]} 14. a4
{[%clk 0:02:36.6]} 14... g5 {[%clk 0:02:50.9]} 15. Bg3 {[%clk 0:02:36.2]} 15...
Rb8 {[%clk 0:02:38.6]} 16. axb5 {[%clk 0:02:31.1]} 16... axb5 {[%clk 0:02:39.5]}
17. d5 {[%clk 0:02:18.3]} 17... Nd8 {[%clk 0:02:19.2]} 18. Ra7 {[%clk
0:01:49.5]} 18... Ne8 {[%clk 0:02:16.2]} 19. Bd3 {[%clk 0:01:23.7]} 19... b4
{[%clk 0:02:01]} 20. c4 {[%clk 0:01:19]} 20... Nb7 {[%clk 0:02:00.2]} 21. Nb3
{[%clk 0:01:12.6]} 21... Nc5 {[%clk 0:02:00.2]} 22. Nxc5 {[%clk 0:01:12.2]}
22... dxc5 {[%clk 0:02:01.1]} 23. Nd2 {[%clk 0:01:07.4]} 23... Rb6 {[%clk
0:01:58.5]} 24. f3 {[%clk 0:01:04.7]} 24... h5 {[%clk 0:01:57.3]} 25. Bf2 {[%clk
0:01:04]} 25... g4 {[%clk 0:01:50.9]} 26. hxg4 {[%clk 0:00:58.6]} 26... hxg4
{[%clk 0:01:50.9]} 27. Nb3 {[%clk 0:00:41.7]} 27... Rh6 {[%clk 0:01:48.3]} 28.
Nxc5 {[%clk 0:00:34.6]} 28... g3 {[%clk 0:01:46]} 29. Be3 {[%clk 0:00:29.7]}
29... Rh2 {[%clk 0:01:29.6]} 30. Kf1 {[%clk 0:00:20.8]} 30... Qh4 {[%clk
0:01:23.9]} 31. Nxd7 {[%clk 0:00:16.9]} 31... Rxg2 {[%clk 0:01:20.9]} 32. Kxg2
{[%clk 0:00:09.5]} 32... Qh2+ {[%clk 0:01:20.7]} 33. Kf1 {[%clk 0:00:07.6]}
33... g2+ {[%clk 0:01:21]} 34. Ke2 {[%clk 0:00:06.8]} 34... g1=Q+ {[%clk
0:01:21.9]} 0-1

[Event "*** Titled Tuesday Blitz"]
[Site "Chess.com"]
[Date "2021.03.02"]
[Round "10"]
[White "German_Bazeev"]
[Black "AryanTari"]
[Result "0-1"]
[WhiteElo "2749"]
[BlackElo "2899"]
[TimeControl "180+1"]
[EndTime "11:57:47 PST"]
[Termination "AryanTari won by resignation"]

1. d4 {[%clk 0:02:13.5]} 1... d5 {[%clk 0:02:42.5]} 2. Nf3 {[%clk 0:02:13.2]}
2... Nf6 {[%clk 0:02:42.3]} 3. c4 {[%clk 0:02:13.9]} 3... c6 {[%clk 0:02:42.2]}
4. Qc2 {[%clk 0:02:13.2]} 4... g6 {[%clk 0:02:36.4]} 5. Bf4 {[%clk 0:02:13.2]}
5... Bg7 {[%clk 0:02:33.8]} 6. e3 {[%clk 0:02:13.7]} 6... O-O {[%clk 0:02:31]}
7. Nc3 {[%clk 0:02:14]} 7... Bf5 {[%clk 0:02:26.8]} 8. Qb3 {[%clk 0:02:14]} 8...
Qb6 {[%clk 0:02:23.9]} 9. h3 {[%clk 0:02:14.6]} 9... Na6 {[%clk 0:02:19.5]} 10.
c5 {[%clk 0:02:12.3]} 10... Qxb3 {[%clk 0:02:17.4]} 11. axb3 {[%clk 0:02:13.2]}
11... Nb4 {[%clk 0:02:18.3]} 12. Ra4 {[%clk 0:01:59]} 12... Nd3+ {[%clk
0:02:15.7]} 13. Bxd3 {[%clk 0:01:57.7]} 13... Bxd3 {[%clk 0:02:16.6]} 14. Kd2
{[%clk 0:01:35.8]} 14... Bf5 {[%clk 0:02:16.5]} 15. Rha1 {[%clk 0:01:34.1]}
15... a6 {[%clk 0:02:12.6]} 16. Rb4 {[%clk 0:01:34.3]} 16... Ra7 {[%clk
0:02:06.7]} 17. Na4 {[%clk 0:01:27.2]} 17... Nd7 {[%clk 0:02:03.8]} 18. Ne5
{[%clk 0:01:19]} 18... Nxe5 {[%clk 0:01:59.8]} 19. Bxe5 {[%clk 0:01:19.9]} 19...
f6 {[%clk 0:01:57.9]} 20. Bg3 {[%clk 0:01:16.7]} 20... e5 {[%clk 0:01:56.2]} 21.
Nb6 {[%clk 0:01:17.1]} 21... h5 {[%clk 0:01:53.9]} 22. h4 {[%clk 0:01:15.6]}
22... Re8 {[%clk 0:01:51.6]} 23. Rba4 {[%clk 0:00:57.4]} 23... Bh6 {[%clk
0:01:48.5]} 24. Re1 {[%clk 0:00:55.4]} 24... Kf7 {[%clk 0:01:44.6]} 25. f4
{[%clk 0:00:49.9]} 25... exf4 {[%clk 0:01:39.5]} 26. Bxf4 {[%clk 0:00:41.7]}
26... g5 {[%clk 0:01:38]} 27. hxg5 {[%clk 0:00:36.2]} 27... fxg5 {[%clk
0:01:38.5]} 28. Be5 {[%clk 0:00:36.9]} 28... Kg6 {[%clk 0:01:35.7]} 29. Rf1
{[%clk 0:00:35.9]} 29... h4 {[%clk 0:01:33.6]} 30. Raa1 {[%clk 0:00:33.8]} 30...
g4 {[%clk 0:01:32.6]} 31. Rxf5 {[%clk 0:00:28.2]} 31... Kxf5 {[%clk 0:01:29.2]}
32. Rf1+ {[%clk 0:00:28.9]} 32... Kg5 {[%clk 0:01:22]} 33. Rf7 {[%clk
0:00:20.6]} 33... a5 {[%clk 0:01:13.9]} 34. Ke2 {[%clk 0:00:18.8]} 34... Rf8
{[%clk 0:01:11.5]} 35. Rc7 {[%clk 0:00:09.9]} 35... h3 {[%clk 0:01:10.4]} 36.
gxh3 {[%clk 0:00:08.8]} 36... gxh3 {[%clk 0:01:10.2]} 37. Bf4+ {[%clk
0:00:09.7]} 37... Kh5 {[%clk 0:01:05.5]} 38. Rh7 {[%clk 0:00:09.1]} 38... Rxf4
{[%clk 0:00:59.2]} 0-1

[Event "*** Titled Tuesday Blitz"]
[Site "Chess.com"]
[Date "2021.03.02"]
[Round "10"]
[White "FGHSMN"]
[Black "ChessWarrior7197"]
[Result "0-1"]
[WhiteElo "2684"]
[BlackElo "2908"]
[TimeControl "180+1"]
[EndTime "11:57:53 PST"]
[Termination "ChessWarrior7197 won by checkmate"]

1. e4 {[%clk 0:03:00.9]} 1... c6 {[%clk 0:03:00.5]} 2. d4 {[%clk 0:03:00.3]}
2... d5 {[%clk 0:03:01.4]} 3. Nc3 {[%clk 0:03:00.8]} 3... dxe4 {[%clk 0:03:02]}
4. Nxe4 {[%clk 0:03:01.7]} 4... Bf5 {[%clk 0:03:02.7]} 5. Ng3 {[%clk 0:03:01.6]}
5... Bg6 {[%clk 0:03:03.3]} 6. h4 {[%clk 0:03:02.2]} 6... h6 {[%clk 0:03:03.9]}
7. N1e2 {[%clk 0:03:02.7]} 7... Nd7 {[%clk 0:03:04.5]} 8. Nf4 {[%clk 0:03:00.2]}
8... Bh7 {[%clk 0:03:04.8]} 9. Bc4 {[%clk 0:03:00.7]} 9... Ngf6 {[%clk
0:03:03.1]} 10. c3 {[%clk 0:02:59.3]} 10... e5 {[%clk 0:02:47.8]} 11. dxe5
{[%clk 0:01:55.4]} 11... Nxe5 {[%clk 0:02:48.7]} 12. Qe2 {[%clk 0:01:54.2]}
12... Qe7 {[%clk 0:02:48]} 13. Bb3 {[%clk 0:01:51.9]} 13... O-O-O {[%clk
0:02:43]} 14. Be3 {[%clk 0:01:46]} 14... Nd3+ {[%clk 0:02:39.6]} 15. Nxd3 {[%clk
0:01:43.5]} 15... Bxd3 {[%clk 0:02:40.5]} 16. Qf3 {[%clk 0:01:42.1]} 16... Qe5
{[%clk 0:02:34.1]} 17. O-O-O {[%clk 0:01:35]} 17... Qa5 {[%clk 0:01:57.3]} 18.
Bf4 {[%clk 0:00:58.7]} 18... Qa6 {[%clk 0:01:33]} 19. Bxf7 {[%clk 0:00:41.6]}
19... Bd6 {[%clk 0:01:33.2]} 20. Bxd6 {[%clk 0:00:21.1]} 20... Rxd6 {[%clk
0:01:34.1]} 21. Nf5 {[%clk 0:00:20.3]} 21... Rdd8 {[%clk 0:01:15.8]} 22. Nxg7
{[%clk 0:00:19.2]} 22... Ne4 {[%clk 0:00:56.5]} 23. Qf4 {[%clk 0:00:12.9]} 23...
Nc5 {[%clk 0:00:39.2]} 24. Ne6 {[%clk 0:00:09.9]} 24... Nb3+ {[%clk 0:00:31.4]}
25. axb3 {[%clk 0:00:06.3]} 25... Qa1+ {[%clk 0:00:32.3]} 26. Kd2 {[%clk
0:00:06.9]} 26... Qxb2+ {[%clk 0:00:33]} 27. Ke3 {[%clk 0:00:02.5]} 27... Qe2#
{[%clk 0:00:33.9]} 0-1

[Event "*** Titled Tuesday Blitz"]
[Site "Chess.com"]
[Date "2021.03.02"]
[Round "10"]
[White "RaphCamora"]
[Black "MITerryble"]
[Result "0-1"]
[WhiteElo "2393"]
[BlackElo "2888"]
[TimeControl "180+1"]
[EndTime "11:57:53 PST"]
[Termination "MITerryble won by checkmate"]

1. e4 {[%clk 0:03:00.9]} 1... g6 {[%clk 0:02:55.1]} 2. d4 {[%clk 0:03:00.4]}
2... Bg7 {[%clk 0:02:54.7]} 3. Nc3 {[%clk 0:02:59.8]} 3... d6 {[%clk 0:02:54.9]}
4. f4 {[%clk 0:02:57.2]} 4... c6 {[%clk 0:02:54.7]} 5. Nf3 {[%clk 0:02:57.3]}
5... d5 {[%clk 0:02:55.2]} 6. e5 {[%clk 0:02:55.4]} 6... h5 {[%clk 0:02:55.3]}
7. Bd3 {[%clk 0:02:52.6]} 7... Nh6 {[%clk 0:02:55]} 8. O-O {[%clk 0:02:51.8]}
8... Bf5 {[%clk 0:02:54.1]} 9. Be3 {[%clk 0:02:23.1]} 9... e6 {[%clk 0:02:53.8]}
10. Bf2 {[%clk 0:02:22.5]} 10... Bf8 {[%clk 0:02:52.2]} 11. Bh4 {[%clk
0:02:21.5]} 11... Qb6 {[%clk 0:02:52.2]} 12. Rb1 {[%clk 0:02:16.2]} 12... Nd7
{[%clk 0:02:51.5]} 13. b4 {[%clk 0:02:11.6]} 13... Bxd3 {[%clk 0:02:48.7]} 14.
Qxd3 {[%clk 0:02:09.8]} 14... Nf5 {[%clk 0:02:49.6]} 15. Na4 {[%clk 0:02:08.6]}
15... Qb5 {[%clk 0:02:47]} 16. Qb3 {[%clk 0:01:57.7]} 16... Qc4 {[%clk 0:02:18]}
17. Bf2 {[%clk 0:01:53.9]} 17... Be7 {[%clk 0:02:15.4]} 18. Nc5 {[%clk
0:01:50.3]} 18... b6 {[%clk 0:02:06.8]} 19. Nd3 {[%clk 0:01:01.7]} 19... a5
{[%clk 0:02:02.9]} 20. a3 {[%clk 0:00:50.5]} 20... axb4 {[%clk 0:02:02.6]} 21.
Nxb4 {[%clk 0:00:45.9]} 21... Qxb3 {[%clk 0:01:43.9]} 22. Rxb3 {[%clk
0:00:45.4]} 22... Nb8 {[%clk 0:01:44.2]} 23. Rc3 {[%clk 0:00:28.1]} 23... Kd7
{[%clk 0:01:42.8]} 24. h3 {[%clk 0:00:26.9]} 24... h4 {[%clk 0:01:42.3]} 25. Rb1
{[%clk 0:00:27]} 25... Kc7 {[%clk 0:01:29.3]} 26. Ne1 {[%clk 0:00:23.3]} 26...
Ra4 {[%clk 0:01:13.2]} 27. Ned3 {[%clk 0:00:23.4]} 27... Kd7 {[%clk 0:01:11.4]}
28. Nb2 {[%clk 0:00:23.3]} 28... Ra8 {[%clk 0:01:08.7]} 29. N2d3 {[%clk
0:00:23.6]} 29... Rc8 {[%clk 0:01:08.4]} 30. Rbb3 {[%clk 0:00:15.8]} 30... Na6
{[%clk 0:01:08]} 31. Na2 {[%clk 0:00:15.3]} 31... b5 {[%clk 0:01:07.5]} 32. Nab4
{[%clk 0:00:14.5]} 32... Nxb4 {[%clk 0:01:05.3]} 33. axb4 {[%clk 0:00:15.4]}
33... Ra1+ {[%clk 0:01:04.4]} 34. Kh2 {[%clk 0:00:14.7]} 34... Rca8 {[%clk
0:01:05.3]} 35. Nc5+ {[%clk 0:00:14.2]} 35... Bxc5 {[%clk 0:01:04.2]} 36. Rxc5
{[%clk 0:00:12.5]} 36... Rf1 {[%clk 0:01:03.8]} 37. Bxh4 {[%clk 0:00:11.2]}
37... Raa1 {[%clk 0:01:00.5]} 38. g4 {[%clk 0:00:11.4]} 38... Rh1+ {[%clk
0:00:58.5]} 39. Kg2 {[%clk 0:00:11.9]} 39... Rag1+ {[%clk 0:00:56.9]} 40. Kf2
{[%clk 0:00:12.5]} 40... Nxh4 {[%clk 0:00:57.1]} 41. Rbc3 {[%clk 0:00:12.5]}
41... Rg2+ {[%clk 0:00:57.1]} 42. Ke3 {[%clk 0:00:12.9]} 42... Rxh3# {[%clk
0:00:57.2]} 0-1

[Event "*** Titled Tuesday Blitz"]
[Site "Chess.com"]
[Date "2021.03.02"]
[Round "10"]
[White "kuba2006"]
[Black "Savagelittlemole"]
[Result "0-1"]
[WhiteElo "2390"]
[BlackElo "2522"]
[TimeControl "180+1"]
[EndTime "11:57:55 PST"]
[Termination "Savagelittlemole won by checkmate"]

1. b3 {[%clk 0:03:00.9]} 1... e5 {[%clk 0:02:59.3]} 2. Bb2 {[%clk 0:03:01.2]}
2... Nc6 {[%clk 0:03:00]} 3. e3 {[%clk 0:03:00.9]} 3... a6 {[%clk 0:03:00.6]} 4.
Nf3 {[%clk 0:02:56]} 4... d6 {[%clk 0:02:58.9]} 5. d4 {[%clk 0:02:55.8]} 5... e4
{[%clk 0:02:54.6]} 6. Nfd2 {[%clk 0:02:55.5]} 6... d5 {[%clk 0:02:55]} 7. c4
{[%clk 0:02:55.1]} 7... Be6 {[%clk 0:02:46.9]} 8. Nc3 {[%clk 0:02:51.7]} 8...
Nf6 {[%clk 0:02:46.4]} 9. cxd5 {[%clk 0:02:50.4]} 9... Bxd5 {[%clk 0:02:46.4]}
10. Nxd5 {[%clk 0:02:49.5]} 10... Qxd5 {[%clk 0:02:45.8]} 11. Bc4 {[%clk
0:02:49.5]} 11... Qg5 {[%clk 0:02:39.4]} 12. O-O {[%clk 0:02:35.2]} 12... Bd6
{[%clk 0:02:39.5]} 13. g3 {[%clk 0:02:27.3]} 13... h5 {[%clk 0:02:35.7]} 14. Qc2
{[%clk 0:02:14.7]} 14... Qg6 {[%clk 0:01:57.4]} 15. Kg2 {[%clk 0:01:10.7]} 15...
h4 {[%clk 0:01:55.1]} 16. Rac1 {[%clk 0:00:56.9]} 16... Qf5 {[%clk 0:01:10.6]}
17. Rh1 {[%clk 0:00:11]} 17... h3+ {[%clk 0:01:10.7]} 18. Kf1 {[%clk 0:00:09.9]}
18... O-O {[%clk 0:01:01]} 19. f3 {[%clk 0:00:09.2]} 19... Rfe8 {[%clk
0:00:56.8]} 20. Rg1 {[%clk 0:00:05.5]} 20... Qh5 {[%clk 0:00:52]} 21. f4 {[%clk
0:00:04.9]} 21... Ng4 {[%clk 0:00:49.8]} 22. Qc3 {[%clk 0:00:03]} 22... Nxh2+
{[%clk 0:00:49.1]} 23. Kf2 {[%clk 0:00:02.8]} 23... Ng4+ {[%clk 0:00:46.1]} 24.
Ke1 {[%clk 0:00:02.7]} 24... Bb4 {[%clk 0:00:45.3]} 25. Qc2 {[%clk 0:00:03.1]}
25... Nxe3 {[%clk 0:00:44.9]} 26. Qb1 {[%clk 0:00:03.6]} 26... Ng2+ {[%clk
0:00:38.4]} 27. Kf2 {[%clk 0:00:02.4]} 27... Bxd2 {[%clk 0:00:38.6]} 28. Rcd1
{[%clk 0:00:02.5]} 28... e3+ {[%clk 0:00:37.8]} 29. Kf1 {[%clk 0:00:01.9]} 29...
Qf3# {[%clk 0:00:38]} 0-1

[Event "*** Titled Tuesday Blitz"]
[Site "Chess.com"]
[Date "2021.03.02"]
[Round "10"]
[White "delphin11"]
[Black "schondeln"]
[Result "0-1"]
[WhiteElo "2534"]
[BlackElo "2399"]
[TimeControl "180+1"]
[EndTime "11:57:55 PST"]
[Termination "schondeln won on time"]

1. d4 {[%clk 0:03:00.9]} 1... d5 {[%clk 0:03:00]} 2. c4 {[%clk 0:02:58.5]} 2...
c6 {[%clk 0:03:00.2]} 3. Nf3 {[%clk 0:02:57.5]} 3... Nf6 {[%clk 0:03:00.4]} 4.
Nc3 {[%clk 0:02:56.5]} 4... dxc4 {[%clk 0:03:00.3]} 5. e4 {[%clk 0:02:51.4]}
5... b5 {[%clk 0:02:59.6]} 6. e5 {[%clk 0:02:50.4]} 6... Nd5 {[%clk 0:02:59.7]}
7. a4 {[%clk 0:02:50]} 7... e6 {[%clk 0:02:59.5]} 8. Ng5 {[%clk 0:02:49.1]} 8...
h6 {[%clk 0:02:58.3]} 9. Nge4 {[%clk 0:02:47.9]} 9... b4 {[%clk 0:02:57.2]} 10.
Nb1 {[%clk 0:02:46.3]} 10... Ba6 {[%clk 0:02:56.5]} 11. Nbd2 {[%clk 0:02:45.7]}
11... c3 {[%clk 0:02:55.2]} 12. Nc4 {[%clk 0:02:45.1]} 12... Bxc4 {[%clk
0:02:53.4]} 13. Bxc4 {[%clk 0:02:44]} 13... cxb2 {[%clk 0:02:50.1]} 14. Bxb2
{[%clk 0:02:43.7]} 14... Nd7 {[%clk 0:02:50.2]} 15. O-O {[%clk 0:02:33.6]} 15...
Be7 {[%clk 0:02:49.2]} 16. Qg4 {[%clk 0:02:31.3]} 16... g6 {[%clk 0:02:49]} 17.
a5 {[%clk 0:02:29.5]} 17... h5 {[%clk 0:02:18.9]} 18. Qf3 {[%clk 0:02:04.6]}
18... O-O {[%clk 0:02:12.2]} 19. Rfc1 {[%clk 0:01:46.9]} 19... Rc8 {[%clk
0:02:07.5]} 20. Rc2 {[%clk 0:01:40.3]} 20... c5 {[%clk 0:02:01.6]} 21. Bxd5
{[%clk 0:01:32.6]} 21... exd5 {[%clk 0:02:00.7]} 22. Nxc5 {[%clk 0:01:29.1]}
22... Nxc5 {[%clk 0:01:55.6]} 23. dxc5 {[%clk 0:01:29.2]} 23... Rxc5 {[%clk
0:01:55.2]} 24. Rxc5 {[%clk 0:01:24.8]} 24... Bxc5 {[%clk 0:01:56.1]} 25. Rd1
{[%clk 0:00:49.2]} 25... Qxa5 {[%clk 0:01:15.1]} 26. Qxd5 {[%clk 0:00:45.6]}
26... Qb6 {[%clk 0:01:11.8]} 27. Rd2 {[%clk 0:00:20.3]} 27... Re8 {[%clk
0:00:55.7]} 28. g3 {[%clk 0:00:08.4]} 28... Bf8 {[%clk 0:00:48.5]} 29. h4 {[%clk
0:00:04.6]} 29... a5 {[%clk 0:00:45.1]} 30. Re2 {[%clk 0:00:02.4]} 30... Re6
{[%clk 0:00:42.3]} 31. Qd7 {[%clk 0:00:02.2]} 31... Qc6 {[%clk 0:00:38.7]} 32.
Qa7 {[%clk 0:00:01.9]} 32... a4 {[%clk 0:00:38.2]} 0-1

[Event "*** Titled Tuesday Blitz"]
[Site "Chess.com"]
[Date "2021.03.02"]
[Round "10"]
[White "Unknown_IM"]
[Black "UCantHandleDenker"]
[Result "1-0"]
[WhiteElo "2398"]
[BlackElo "2518"]
[TimeControl "180+1"]
[EndTime "11:58:01 PST"]
[Termination "Unknown_IM won by checkmate"]

1. e4 {[%clk 0:03:00.9]} 1... c5 {[%clk 0:02:59.4]} 2. Nf3 {[%clk 0:03:00.7]}
2... d6 {[%clk 0:02:59.5]} 3. c3 {[%clk 0:03:00.5]} 3... Nf6 {[%clk 0:02:59]} 4.
Be2 {[%clk 0:02:57.9]} 4... g6 {[%clk 0:02:58.7]} 5. O-O {[%clk 0:02:53.6]} 5...
Bg7 {[%clk 0:02:58.8]} 6. Bb5+ {[%clk 0:02:51]} 6... Bd7 {[%clk 0:02:57]} 7.
Bxd7+ {[%clk 0:02:51.2]} 7... Qxd7 {[%clk 0:02:55.8]} 8. Re1 {[%clk 0:02:47.2]}
8... O-O {[%clk 0:02:52.9]} 9. d4 {[%clk 0:02:47.5]} 9... Qc7 {[%clk 0:02:49.5]}
10. h3 {[%clk 0:02:46.3]} 10... Rd8 {[%clk 0:02:47.9]} 11. Na3 {[%clk
0:02:42.7]} 11... a6 {[%clk 0:02:46.9]} 12. Bf4 {[%clk 0:02:39.5]} 12... Nc6
{[%clk 0:02:38.2]} 13. Rc1 {[%clk 0:02:34.4]} 13... Rac8 {[%clk 0:02:10.3]} 14.
Nc4 {[%clk 0:02:28.1]} 14... cxd4 {[%clk 0:01:57.3]} 15. cxd4 {[%clk 0:02:26.5]}
15... b5 {[%clk 0:01:57.9]} 16. Ne3 {[%clk 0:02:12.6]} 16... Qb7 {[%clk
0:01:53.5]} 17. Nf1 {[%clk 0:02:05.1]} 17... Na5 {[%clk 0:01:40.9]} 18. Ng3
{[%clk 0:02:00.6]} 18... d5 {[%clk 0:01:33.7]} 19. e5 {[%clk 0:01:58.8]} 19...
Ne4 {[%clk 0:01:33.6]} 20. b3 {[%clk 0:01:57.1]} 20... Rxc1 {[%clk 0:01:26.5]}
21. Qxc1 {[%clk 0:01:58]} 21... Rc8 {[%clk 0:01:25.1]} 22. Qa3 {[%clk
0:01:56.2]} 22... Nc6 {[%clk 0:01:20.6]} 23. Nxe4 {[%clk 0:01:54.8]} 23... dxe4
{[%clk 0:01:20.5]} 24. Rxe4 {[%clk 0:01:54.7]} 24... Nb4 {[%clk 0:01:08.3]} 25.
Re2 {[%clk 0:01:41.4]} 25... Nd3 {[%clk 0:01:08.2]} 26. Bg5 {[%clk 0:01:39]}
26... f6 {[%clk 0:00:52.7]} 27. exf6 {[%clk 0:01:35.5]} 27... exf6 {[%clk
0:00:52.5]} 28. Re7 {[%clk 0:01:34.4]} 28... Qc6 {[%clk 0:00:29]} 29. Rxg7+
{[%clk 0:01:28.9]} 29... Kxg7 {[%clk 0:00:26.9]} 30. Qe7+ {[%clk 0:01:28.8]}
30... Kg8 {[%clk 0:00:27.4]} 31. Bxf6 {[%clk 0:01:28.7]} 31... Qc7 {[%clk
0:00:24.4]} 32. Qe6+ {[%clk 0:01:26.2]} 32... Kf8 {[%clk 0:00:21.9]} 33. g3
{[%clk 0:01:08.3]} 33... Re8 {[%clk 0:00:20]} 34. Qd5 {[%clk 0:01:04.7]} 34...
Qc1+ {[%clk 0:00:16.6]} 35. Kg2 {[%clk 0:01:04.5]} 35... Qc2 {[%clk 0:00:11.7]}
36. Qd6+ {[%clk 0:00:59.9]} 36... Kf7 {[%clk 0:00:12.1]} 37. Ng5+ {[%clk
0:00:58.2]} 37... Kg8 {[%clk 0:00:02.7]} 38. Qd5+ {[%clk 0:00:56.1]} 38... Kf8
{[%clk 0:00:01.7]} 39. Nxh7# {[%clk 0:00:54.5]} 1-0